Cogmind - Beta 16 @@@ ROGUE MODE // 2025.12.23 @ 20:48:53 Player: Arttano Result: Destroyed by G-47 Trooper with Particle Gun Performance ------------- Evolutions (0) 0 Regions Visited (1) 200 Robots Destroyed (8) 40 Value Destroyed (198) 198 Prototype IDs (0) 0 Alien Tech Used (0) 0 Bonus (0) 0 TOTAL SCORE: 438 Bonus ------- None Cogmind --------- Core Integrity 0/250 Matter 239/300 Energy 100/100 System Corruption 0% Temperature Cool (9) Movement Core (200) Ox3 Location -10/Materials Parts ------- > --- POWER (1) -------- (None) > --- PROPULSION (2) --- (None) > --- UTILITY (2) ------ Medium Storage Unit Improved Targeting Computer > --- WEAPON (2) ------- (None) > --- INVENTORY (10) --- Ion Engine Aluminum Leg Aluminum Leg Hover Unit Sensor Array Signal Interpreter Improved Targeting Computer Hacking Suite Peak State ------------ > --- POWER ------------ Ion Engine > --- PROPULSION ------- Aluminum Leg Aluminum Leg > --- UTILITY ---------- Medium Storage Unit Improved Targeting Computer > --- WEAPON ----------- Heavy EM Pulse Gun Heavy EM Pulse Gun > --- INVENTORY -------- Ion Engine Light Treads Light Treads Small Storage Unit Sensor Array Improved Targeting Computer Assault Rifle Assault Rifle Grenade Launcher [Rating: 11] Favorites ----------- Power Ion Engine Engine Ion Engine Propulsion Aluminum Leg Leg Aluminum Leg Hover Unit Hover Unit Utility Improved Targeting Computer Storage Medium Storage Unit Processor Improved Targeting Computer Weapon Heavy EM Pulse Gun Energy Gun Heavy EM Pulse Gun Ballistic Gun Assault Rifle Launcher Grenade Launcher Build | -11 -10 ------- Run | Yrd Mat Slots Evolved . | . . Power . | . . Propulsion . | . . Utility . | . . Weapon . | . . Parts Attached 17 | 7 10 Power 1 | 1 . Engine 1 | 1 . Core . | . . Reactor . | . . Propulsion 6 | 2 4 Treads . | . . Leg 4 | 2 2 Wheel . | . . Hover 2 | . 2 Flight . | . . Utility 4 | 1 3 Device . | . . Storage 2 | 1 1 Processor 2 | . 2 Hackware . | . . Protection . | . . Artifact . | . . Weapon 6 | 3 3 Energy Gun 2 | . 2 Energy Cannon . | . . Ballistic Gun 3 | 3 . Ballistic Cannon . | . . Launcher 1 | . 1 Special Weapon . | . . Impact Weapon . | . . Slashing Weapon . | . . Piercing Weapon . | . . Special Melee Weapon . | . . Unidentified Prototypes . | . . Parts Lost 7 | . 7 Power 1 | . 1 Propulsion 2 | . 2 Utility . | . . Weapon 4 | . 4 Highest Loss Streak 7 | . 7 To Critical Strikes 1 | . 1 Average Backups 8 | 4 9 Power . | . 1 Propulsion 2 | 2 2 Utility 2 | . 2 Weapon 2 | 1 2 Tool/Special . | . . Unused Backups 10 | . 10 Power 1 | . 1 Propulsion 4 | . 4 Utility 5 | . 5 Weapon . | . . Tool/Special . | . . Average Slot Usage (%) 94 | . 94 Engine 12 | . 12 Leg 16 | . 16 Hover 9 | . 9 Storage 14 | . 14 Processor 13 | . 13 Energy Gun 18 | . 18 Ballistic Gun 2 | . 2 Launcher 5 | . 5 Peak Build Rating 11 | 6 11 Average Rating 8 | 4 9 On Entrance 3 | . 6 Avg Prop Armor Cover (%) . | . . Naked Turns . | . . Heaviest Build 21 | 14 21 Greatest Support 20 | 20 20 Greatest Overweight (x) 3 | 3 3 Average Overweight (x) . | . . Largest Inventory Capacity 10 | 8 10 Average Capacity 9 | 7 9 Most Carried 10 | 8 10 Average Carried 8 | 4 9 Final Capacity 10 | 8 10 Final Carried 8 | 4 8 Class Distribution -------------------- 100% | Mutant Dominant Class ---------------- Mutant | -10/Materials Resources | -11 -10 ----------- Run | Yrd Mat Matter Collected 344 | 239 105 Remotely . | . . Salvage Created 263 | . 263 Parts 22 | . 22 Haulers Intercepted . | . . Recyclers Shooed . | . . Parts Field Recycled . | . . Retrieved Matter . | . . Parts Self-Destructed . | . . Prevented . | . . Parts Restored . | . . Kills | -11 -10 ------- Run | Yrd Mat Combat Hostiles Destroyed 6 | . 6 Guns 4 | . 4 AOE 1 | . 1 Classes Destroyed 4 | . 4 Operator 1 | . 1 Watcher 1 | . 1 Swarmer 2 | . 2 Grunt 4 | . 4 Best Kill Streak 3 | . 3 Combat Bots Only 3 | . 3 Max Kills in Single Turn 1 | . 1 Gunslinging . | . . Exploded 1 | . 1 Melee . | . . Uniques/NPCs Destroyed . | . . Combat | -11 -10 -------- Run | Yrd Mat Hostile Shots Fired 113 | . 113 Missed 30 | . 30 Hits 83 | . 83 Projectile 83 | . 83 Critical Strikes 1 | . 1 Damage Taken 865 | . 865 Core 250 | . 250 Absorbed by Shields . | . . Core Remaining (%) 100 | 100 . Volleys Fired 26 | 1 25 Largest 2 | 2 2 Hottest 90 | 40 90 Shots Fired 40 | 2 38 Gun 39 | 2 37 Cannon . | . . Launcher 1 | . 1 Special . | . . Kinetic 14 | 2 12 Thermal . | . . Explosive 1 | . 1 Electromagnetic 25 | . 25 Robot Hit Streak 5 | . 5 Robot Miss Streak 5 | . 5 Penetration Max . | . . Secondary Targets . | . . Shots Hit Robots 21 | . 21 Core Hits 11 | . 11 Critical Kills . | . . Critical Parts Destroyed . | . . Critical Strikes 1 | . 1 Corrupt 1 | . 1 Melee Attacks . | . . Impact . | . . Slashing . | . . Piercing . | . . Sneak Attacks . | . . Combat Hostiles . | . . Follow-up Attacks . | . . Damage Inflicted 508 | . 508 Guns 367 | . 367 Cannons . | . . Explosions 141 | . 141 Melee . | . . Ramming . | . . Kinetic 124 | . 124 Thermal 141 | . 141 Explosive . | . . Electromagnetic 243 | . 243 Impact . | . . Slashing . | . . Piercing . | . . Highest Corruption . | . . Average Corruption . | . . Corruption Purged . | . . Corruption Blocked . | . . Overload Shots . | . . Overflow Damage . | . . Projectiles . | . . Explosions . | . . Melee . | . . Knockbacks . | . . Impact . | . . Kinetic . | . . Secondary . | . . Self-Inflicted Damage 47 | . 47 Shots 2 | . 2 Rammed . | . . Targets Rammed . | . . Kicked . | . . Crushed . | . . Highest Temperature 126 | . 126 Average Temperature 37 | . 37 Received Heat Transfer 264 | . 264 Siege Activations . | . . Martial Activations . | . . Shielding Activations . | . . Robots Disrupted . | . . Combat Hostiles . | . . Robots Corrupted 1 | . 1 Combat Hostiles 1 | . 1 Parts Fried . | . . Impact Corruptions . | . . Robots Melted . | . . Combat Hostiles . | . . Parts Melted . | . . Heat Transferred 250 | . 250 Parts Sabotaged . | . . Parts Stolen . | . . Parts Stripped . | . . Power Chain Reactions 3 | . 3 Alert | -11 -10 ------- Run | Yrd Mat Maximum Alert Level . | . . Low Security (%) 100 | 100 100 Level 1 . | . . Level 2 . | . . Level 3 . | . . Level 4 . | . . Level 5 . | . . High Security . | . . Max Security . | . . Peak Influence 65 | . 65 Initial . | . . Average 12 | . 15 Influence Increases 210 | . 210 Destroy 0b10 Robot/C 120 | . 120 Destroy 0b10 Robot/NC 10 | . 10 Destroy Leader 32 | . 32 Successful Hack 14 | . 14 Disable Machine 15 | . 15 Destroy Structure 19 | . 19 Influence Decreases 206 | . 206 Time Decay 176 | . 176 Lost Part 30 | . 30 Squads Dispatched 2 | . 2 Investigation 1 | . 1 Extermination . | . . Reinforcement 1 | . 1 Assault . | . . Garrison . | . . Intercept . | . . Searches Triggered . | . . Construction Impeded . | . . Haulers Reinforced . | . . Active Scanning Responses . | . . Cargo Convoy Interrupts . | . . Stealth | -11 -10 --------- Run | Yrd Mat Distress Signals . | . . Communications Jammed . | . . Distress Signals . | . . Times Spotted 11 | . 11 Peak Tracking Total 5 | . 5 Tactical Retreats . | . . Traps | -11 -10 ------- Run | Yrd Mat Traps Triggered . | . . Indirectly . | . . Trap Hack Attempts . | . . Triggered . | . . Disarmed . | . . Reprogrammed . | . . Reused . | . . Traps Extracted . | . . Installed . | . . Triggered . | . . Machines | -11 -10 ---------- Run | Yrd Mat Machines Disabled 1 | . 1 Max in Single Turn 1 | . 1 Machines Repaired . | . . Machines Dismantled . | . . Machines Sabotaged . | . . Overloaded Fab Kills . | . . Hacking | -11 -10 --------- Run | Yrd Mat Machines Accessed 3 | . 3 Terminals 2 | . 2 Fabricators . | . . Repair Stations . | . . Recycling Units 1 | . 1 Scanalyzers . | . . Garrison Access . | . . Total Hacks 18 | . 18 Successful 10 | . 10 Failed 8 | . 8 Catastrophic . | . . Database Lockouts . | . . Manual 8 | . 8 Terminals 15 | . 15 Fabricators . | . . Repair Stations . | . . Recycling Units 3 | . 3 Scanalyzers . | . . Garrison Access . | . . Terminal Hacks 7 | . 7 Record 2 | . 2 Robot Analysis 1 | . 1 Terminal Index 1 | . 1 Unreport Threat 1 | . 1 Locate Traps 1 | . 1 Hauler Manifests 1 | . 1 Fabricator Hacks . | . . Repair Station Hacks . | . . Recycling Unit Hacks 2 | . 2 Report Inventory 1 | . 1 Retrieve Components 1 | . 1 Scanalyzer . | . . Garrison Access Hacks . | . . Unauthorized Hacks 1 | . 1 Terminals 1 | . 1 Track 1 | . 1 Fabricators . | . . Repair Stations . | . . Recycling Units . | . . Scanalyzers . | . . Garrison Access . | . . Data Cores Recovered . | . . Used . | . . Hacking Detections 3 | . 3 Full Trace Events 1 | . 1 Feedback Events . | . . Feedback Blocked . | . . Robot Schematics Acquired . | . . Robots Built . | . . Authchips . | . . Time . | . . Total Robot Build Rating . | . . Part Schematics Acquired . | . . Parts Built . | . . Authchips . | . . Time . | . . Total Part Build Rating . | . . Part Studies Acquired . | . . Parts Repaired . | . . Time . | . . Parts Recycled . | . . Recycled Matter . | . . Retrieved Matter . | . . Retrieved Components 9 | . 9 Parts Scanalyzed . | . . Part Schematics Acquired . | . . Parts Damaged . | . . Bothacking | -11 -10 ------------ Run | Yrd Mat Used RIF Installer . | . . Robots Hacked . | . . Non-combat . | . . Combat . | . . Robot Hacks Applied . | . . Relay Couplers Released . | . . Fabnet Peak Effective % . | . . Robots Rewired . | . . Allies Hacked . | . . Hacks Repelled . | . . Allies | -11 -10 -------- Run | Yrd Mat Total Allies . | . . Largest Group . | . . Highest-Rated Group . | . . Highest-Rated Ally . | . . Total Orders . | . . Ally Attacks . | . . Total Damage . | . . Kills . | . . Allies Corrupted . | . . Allies Melted . | . . Intel | -11 -10 ------- Run | Yrd Mat Active Infowar (turns) . | . . Robot Analysis Total 1 | . 1 Derelict Logs Recovered . | . . Drone Launches . | . . Drone Recoveries . | . . Exploration | -11 -10 ------------- Run | Yrd Mat Turns Passed 679 | 139 540 Spaces Moved 349 | 50 299 Core 28 | 24 4 Treads . | . . Legs 174 | 26 148 Wheels . | . . Hover 147 | . 147 Flight . | . . Fastest Speed 50 | 50 116 Average Speed 133 | 102 138 Slowest Speed 200 | 200 200 Overloaded Moves . | . . Propulsion Burnouts . | . . Robots Hopped . | . . Potential Cave-ins . | . . Cave-ins Triggered . | . . Exploration Rate (%) 23 | 5 42 Regions Visited 1 Branch Regions . Pre-discovered Areas . | . . Known Exits Taken . | . . Unknown Exits Taken 1 | 1 . Scrap Searched . | . . Spaces Dug . | . . Terrain Destroyed 17 | . 17 Melee . | . . Projectile . | . . AOE 17 | . 17 Terrain Rammed . | . . Walls Destroyed . | . . Machines Disabled . | . . Actions | -11 -10 --------- Run | Yrd Mat Total 523 | 134 389 Wait 98 | 69 29 Move 348 | 49 299 Hop . | . . Pick Up 22 | 8 14 Fast Attach 2 | 2 . Attach 7 | 4 3 Detach . | . . Swap 10 | 1 9 Drop 10 | . 10 Fire 26 | 1 25 Melee . | . . Ram . | . . Kick . | . . Crush . | . . Escape Stasis . | . . Rewire . | . . Trap . | . . Miscellaneous . | . . Route ------- -11/Scrapyard -10/Materials (discovered 1 exit: [*Mat]) History --------- Turn | Location | Event 39 | -11/Scrapyard | Discovered new exit (range 16) 140 | -11/Scrapyard | Entered Materials 304 | -10/Materials | Build established: Mutant 472 | -10/Materials | Discovered new exit (range 8) 655 | -10/Materials | Core integrity fell below 50% 678 | -10/Materials | Core integrity fell below 20% 680 | -10/Materials | Destroyed by G-47 Trooper with Particle Gun Last Messages --------------- 00663_ Nuclear Reactor explodes. 00663_ K-01 Serf destroyed. 00663_ A-02 Transporter destroyed. 00663_ U-05 Engineer lays Concrete. 00663_ S-10 Pest IFF system glitched. 00663_ R-06 Scavenger collects Flight Unit. 00664_ K-01 Serf collects debris. 00664_ U-05 Engineer lays Concrete. 00667_ R-06 Scavenger collects Lgt. Assault Rifle. 00667_ K-01 Serf collects debris. 00668_ U-05 Engineer lays Concrete. 00670_ A-02 Transporter destroyed. 00670_ U-05 Engineer lays Concrete. 00671_ Nuclear Reactor explodes. 00671_ U-05 Engineer destroyed. 00672_ K-01 Serf destroyed. 00672_ R-06 Scavenger collects Wheel. 00676_ Assault Rifle destroyed. 00678_ U-05 Engineer lays Concrete. Map ----- +----------------------------------------------------+ | ????????????????????# """ """ #????????? | | ????????????????????# """ """ #????????? | | ????????????????????# """ """ #????????? | | ????????????????????# "T" #????????? | | ????????????????????# != #????????? | | ??#########################+#######????????? | | ??# # + % % #????????????? | | ??# < # """ ####### % #????????????? | | ??# #*"Y"* #######+### #######??????? | | ??# + == =## # ^ ^ #??????? | | ??# #= ! ! ##""" "" # #??????? | | ?## # ##""" T" # ]] #??????? | | ?# ######/##""" "" # ] #??????? | | ?# ##### ##""" # ] +??????? | | ?# ! % + k + #??????? | | ?# # #??????? | | ?# # #?????? | | ?# #### # #?????? | | ?## # ##### ######### %! #?????? | | ??# # # # = #?????? | | ??# + + # = #?????? | | ??# # # = #?????? | | ??######### ######## ! #?????? | | ??????????# #??????##!%! #?????? | | ?????????# #?????# =!r # ????? | | ?????????# #?????# @ + ????? | | ?????????# #???#### #?????? | | ?????????# #???#[[ #?????? | | ?????????# #???#[[ u ##????? | | ?????????#######???#!! %=u!! #????? | | ???????????????????# %sg !!! #????? | | ???????????????????# g[ ! #????? | | ??????#######??????#[[ #????? | | ####### ############ #????? | | ### ##????? | | #?? #?????? | | !! T #??? +?????? | | ! #??? #?????? | | ####################???? #?????? | | #??????????????????????? #?????? | | #????????????????????????#?????? | | #??????????????????????????????? | | #??????????????????????????????? | | #??????????????????????????????? | | #??????????????????????????????? | | #??????????????????????????????? | | ^ #??????????????????????????????? | | #??????????????????????????????? | | #??????????????????????????????? | | !!! #??????????????????????????????? | +----------------------------------------------------+ Best States ------------- Heat Dissipation 25 Energy Generation 10 Energy Capacity 250 Matter Stores 300 Matter Capacity 300 Sight Range 16 Terrain Scan Density 10 Evasion (%) 55 Targeting Accuracy 6 Item Schematics ----------------- None Robot Schematics ------------------ None Fabricated ------------ Nothing Repaired ---------- Nothing Studied --------- None Alien Tech Used ----------------- None Achievements -------------- Ghost 'Em Shopping List root@ Challenges ------------ None Game ------ Seed GuidanceReflexRecalibrator Manual? 0 Play Time 00:26:21 Cumulative 2.9 hours Start 2025.12.23 @ 20:22:40 End 2025.12.23 @ 20:48:53 Sessions 1 Manual Loads 0 Difficulty Rogue Special Mode None Game No. 3 Rogue 3 Adventurer 0 Explorer 0 Win Type - Total 0 Types 0/0/0/0/0/0/0/0/0/0 Lore% 3 Gallery% 4 Achievement% 7 Wizard Run 0 Options --------- Layout 2 ASCII 0 Keyboard 0 Movement Numpad Keybinds 0 Fullscreen 2 Font 24/Smallcaps Map View 50x44 Zoom Use 0% Tactical HUD 1 Map Filters NONE Filters NONE Steam 1 RUN: d679cca4-b064-4666-a41b-b721a719962e